bitfinex-derivatives/quotes_SOLF0:USTF0_20251211
["timestamp","ask_amount","ask_price","bid_price","bid_amount"]
[1765463495920,2.57531,130.43,130.39,3.26948705]
[1765463496124,2.57531,130.43,130.4,3.22]
[1765463496318,107.2777,130.5,130.4,3.22]
[1765463496527,107.2992,130.47,130.4,3.22]
[1765463496827,114.1936,130.47,130.4,3.22]
[1765463497038,0.05214247,130.45,130.42,0.05309569]
[1765463497322,114.2218,130.44,130.42,0.05309569]
[1765463497618,107.36554247,130.45,130.35,3.22]
[1765463497823,133.9137785,130.46,130.36,3.22]
[1765463498016,107.3127,130.45,130.36,3.22]
[1765463498323,6.8996,130.44,130.36,3.22]
[1765463498625,0.05202366,130.42,130.39,3.26921567]
[1765463498817,0.05202366,130.42,130.39,0.04921567]
[1765463499424,0.05202366,130.42,130.39,3.26921567]
[1765463500224,107.2598,130.52,130.39,3.26921567]
[1765463500429,107.2423,130.54,130.44,3.22]
[1765463500619,107.2414,130.54,130.46,3.22]
[1765463500820,107.2566,130.52,130.46,3.22]
[1765463501015,107.2572,130.52,130.43,68.44]
[1765463501226,107.2572,130.52,130.43,3.22]
[1765463501414,0.05651097,130.49,130.46,0.04964827]
[1765463501619,6.95331097,130.49,130.46,0.04964827]
[1765463502024,107.2915,130.48,130.46,0.04964827]
[1765463502225,0.05651097,130.49,130.4,107.35]
[1765463502528,107.2441,130.54,130.44,3.22]
[1765463502529,107.2489,130.53,130.44,3.22]
[1765463502734,6.8945,130.53,130.45,3.22]
[1765463502932,6.8945,130.53,130.46,3.22]
[1765463503225,172.402,130.59,130.49,3.22]
[1765463503737,107.2132,130.58,130.49,3.22]
[1765463504030,107.2254,130.56,130.49,3.22]
[1765463504329,0.05447529,130.54,130.49,3.22]
[1765463504522,0.05447529,130.54,130.51,0.04929161]
[1765463504721,0.05447529,130.54,130.51,3.26929161]
[1765463504925,107.1755,130.62,130.52,3.22]
[1765463505220,6.8903,130.61,130.52,117.3684]
[1765463505429,6.8903,130.61,130.54,3.22]
[1765463505622,107.1897,130.6,130.5,3.22]
[1765463505822,0.05320582,130.56,130.54,0.05272268]
[1765463506025,0.05320582,130.56,130.54,3.27272268]
[1765463506638,0.05320582,130.56,130.54,0.05272268]
[1765463507230,107.27770582,130.56,130.54,0.05272268]
[1765463507531,114.17080582,130.56,130.54,0.05272268]
[1765463508142,114.17080582,130.56,130.46,68.38]
[1765463508143,6.8944,130.53,130.46,68.38]
[1765463508331,107.1825,130.61,130.51,3.22]
[1765463508639,107.1649,130.63,130.53,3.3]
[1765463509041,6.8903,130.61,130.53,3.3]
[1765463509234,0.05423437,130.58,130.56,0.05259824]
[1765463509539,0.05423437,130.58,130.56,3.35259824]
[1765463509742,172.313,130.65,130.56,3.35259824]
[1765463509930,111.51796803,130.68,130.57,3.3]
[1765463510134,107.1397,130.66,130.57,3.3]
[1765463510433,6.8884,130.65,130.57,3.3]
[1765463510627,4.38856803,130.68,130.6,3.3]
[1765463510830,0.05144137,130.65,130.63,0.04880212]
[1765463511033,0.05144137,130.65,130.63,3.34880212]
[1765463511840,0.05144137,130.65,130.63,0.04880212]
[1765463512226,0.05144137,130.65,130.63,3.34880212]
[1765463512430,4.38856803,130.68,130.63,3.34880212]
[1765463512835,107.1321,130.67,130.63,0.04880212]
[1765463513034,107.1398,130.66,130.63,0.04880212]
[1765463513239,6.8883,130.65,130.63,0.04880212]
[1765463513538,0.05141009,130.65,130.63,3.34880212]
[1765463514133,4.38856803,130.68,130.63,3.34880212]
[1765463514328,4.38856803,130.68,130.64,3.3]
[1765463515136,0.05094645,130.67,130.64,3.3]
[1765463515345,0.05094645,130.67,130.63,3.34880212]
[1765463515728,6.93804645,130.67,130.63,3.34880212]
[1765463516128,6.93804645,130.67,130.63,0.04880212]
[1765463516129,6.8884,130.65,130.63,0.04880212]
[1765463516327,107.1485,130.65,130.63,0.04880212]
[1765463516831,107.1678,130.63,130.55,3.3]
[1765463517034,107.1744,130.62,130.55,3.3]
[1765463517431,6.8903,130.61,130.55,3.3]
[1765463517834,6.8903,130.61,130.57,0.05312765]
[1765463518039,0.05018953,130.59,130.57,3.42312765]
[1765463518442,65.1,130.67,130.57,4.96312765]
[1765463518637,107.1204,130.69,130.56,107.2189]
[1765463518638,4.38856803,130.68,130.61,10.2599]
[1765463518945,4.38856803,130.68,130.62,3.37]
[1765463519447,0.04906269,130.66,130.64,0.05049234]
[1765463519638,0.04906269,130.66,130.64,3.42049234]
[1765463519833,107.0549,130.77,130.66,3.37]
[1765463520142,126.59865979,130.78,130.67,3.37]
[1765463520341,126.59865979,130.78,130.68,3.37]
[1765463520342,6.8825,130.76,130.68,3.37]
[1765463520534,107.0675,130.75,130.66,65.08]
[1765463520737,124.0,131.0,130.72,3.37]
[1765463520738,107.0114,130.82,130.72,3.37]
[1765463520938,106.988,130.85,130.76,3.4268888]
[1765463521137,126.53445979,130.86,130.75,107.0638]
[1765463521338,107.001,130.83,130.74,3.37]
[1765463521535,107.0024,130.83,130.74,3.37]
[1765463521739,106.9794,130.86,130.76,10.2519]
[1765463521937,107.0222,130.81,130.72,3.37]
[1765463522138,107.0434,130.78,130.68,110.4889]
[1765463522348,0.05275115,130.74,130.72,0.05182479]
[1765463522649,0.05418898,130.74,130.72,3.42182479]
[1765463522953,107.0837,130.73,130.7,0.96429]
[1765463523250,0.05418898,130.74,130.7,0.96429]
[1765463523447,0.05418898,130.74,130.71,3.37]
[1765463523652,0.05418898,130.74,130.7,0.96429]
[1765463524143,0.05418898,130.74,130.71,0.04988645]
[1765463525045,0.05418898,130.74,130.71,3.41988645]
[1765463525246,0.05418898,130.74,130.71,0.04988645]
[1765463525751,107.0226,130.81,130.71,3.41988645]
[1765463525955,6.8799,130.81,130.72,107.0866]
[1765463526150,106.9968,130.84,130.74,3.37]
[1765463526343,106.9968,130.84,130.74,110.4412]
[1765463526544,172.0385,130.86,130.76,3.37]
[1765463526750,0.05196788,130.82,130.8,0.04882188]
[1765463527252,0.05196788,130.82,130.8,3.41882188]
[1765463527440,106.9368,130.91,130.82,3.37]
[1765463527842,106.9445,130.9,130.82,3.37]
[1765463528048,6.8757,130.89,130.82,3.37]
[1765463528246,106.9245,130.93,130.82,110.3715]
[1765463528449,0.04870673,130.89,130.86,0.05400908]
[1765463528646,0.05593695,130.89,130.86,0.05077138]
[1765463528954,0.05593695,130.89,130.86,3.42077138]
[1765463529354,0.05593695,130.89,130.86,0.05077138]
[1765463529551,106.9596,130.88,130.86,0.05077138]
[1765463529755,0.05593695,130.89,130.86,0.05077138]
[1765463530045,107.00993695,130.89,130.86,0.05077138]
[1765463530250,0.05593695,130.89,130.86,0.05077138]
[1765463530757,0.05593695,130.89,130.86,3.42077138]
[1765463530954,6.8742,130.92,130.86,3.42077138]
[1765463530955,65.02,130.98,130.88,3.37]
[1765463531148,106.8459,131.02,130.92,3.37]
[1765463531347,118.03383554,131.05,130.95,3.37]
[1765463531561,118.03383554,131.05,130.96,3.37]
[1765463531854,4.34213554,131.05,130.97,3.37]
[1765463532165,4.34213554,131.05,131.0,0.04966311]
[1765463532347,4.34213554,131.05,131.0,3.41966311]
[1765463532759,4.34213554,131.05,131.0,0.04966311]
[1765463533057,4.34213554,131.05,131.0,3.41966311]
[1765463533255,0.0578213,131.04,131.0,3.41966311]
[1765463533555,106.7838,131.1,131.02,3.37]
[1765463533868,106.8003,131.08,131.0,64.98]
[1765463534056,114.4266,131.09,131.0,68.35]
[1765463534359,106.8242,131.05,131.0,3.37]
[1765463534548,0.77,131.04,131.03,0.0044323]
[1765463534750,106.8325,131.04,130.97,64.98]
[1765463535064,106.8162,131.06,130.98,3.37]
[1765463535650,0.05865635,131.03,131.01,0.05239003]
[1765463535864,0.05865635,131.03,131.01,3.42239003]
[1765463536656,0.05865635,131.03,131.01,0.05239003]
[1765463536965,106.89965635,131.03,131.01,0.05239003]
[1765463537159,106.7499,131.14,131.05,3.34]
[1765463537361,106.729,131.17,131.07,3.34]
[1765463537564,113.6124,131.14,131.07,3.34]
[1765463537764,0.71,131.17,131.07,3.34]
[1765463537959,0.71,131.17,131.08,68.28]
[1765463538158,106.7201,131.18,131.08,68.28]
[1765463538159,0.04943925,131.14,131.11,0.04889887]
[1765463538359,0.04943925,131.14,131.11,3.38889887]
[1765463538762,6.8587,131.21,131.12,3.38]
[1765463538952,106.7016,131.2,131.12,3.38]
[1765463539157,106.7501,131.14,131.07,64.92]
[1765463539365,107.4916,131.16,131.07,68.3]
[1765463539560,106.7756,131.11,131.02,3.38]
[1765463539865,114.4065,131.1,131.05,0.05550686]
[1765463540066,106.7515,131.14,131.05,3.43550686]
[1765463540067,107.5115,131.14,131.05,3.43550686]
[1765463540267,107.5115,131.14,131.01,106.8504]
[1765463540268,0.76,131.09,131.08,0.05159441]
[1765463540473,0.76,131.09,131.0,68.3]
[1765463540767,106.8106,131.07,131.0,68.3]
[1765463541068,106.822,131.05,131.0,3.38]
[1765463541359,106.8295,131.04,130.98,64.9]
[1765463541554,106.821,131.05,131.0,0.05303598]
[1765463541555,107.65759441,131.02,131.0,0.05303598]
[1765463541751,0.05159441,131.02,131.0,0.05303598]
[1765463541955,0.05159441,131.02,130.95,10.2522]
[1765463541956,106.8574,131.01,130.95,3.38]
[1765463542167,107.6226,131.0,130.92,64.9]
[1765463542358,0.76,131.0,130.92,64.9]
[1765463542555,106.8454,131.02,130.92,175.2058]
[1765463542771,106.8454,131.02,130.93,3.38]
[1765463543067,0.05475076,130.99,130.96,0.05609031]
[1765463543659,0.81475076,130.99,130.96,0.05609031]
[1765463543861,107.68585076,130.99,130.96,0.05609031]
[1765463544165,107.6633,130.95,130.92,64.9]
[1765463544367,106.9115,130.94,130.87,64.9]
[1765463544873,113.7945,130.93,130.87,64.9]
[1765463545271,0.81476117,130.91,130.89,0.04896778]
[1765463545572,0.05476117,130.91,130.89,0.04896778]
[1765463545765,0.81476117,130.91,130.89,0.04896778]
[1765463545966,0.76,130.9,130.89,0.04896778]
[1765463546169,107.706,130.9,130.83,64.88]
[1765463546365,107.6707,130.94,130.84,3.38]
[1765463546566,6.8738,130.93,130.84,117.2489]
[1765463546869,6.8738,130.93,130.84,110.3713]
[1765463547072,0.05681862,130.9,130.87,0.05246612]
[1765463547471,0.81681862,130.9,130.87,0.05246612]
[1765463547671,107.76021862,130.9,130.87,0.05246612]
[1765463547860,0.7,130.86,130.79,6.8805]
[1765463548063,107.6434,130.9,130.8,110.4028]
[1765463548258,107.6434,130.9,130.81,3.38]
[1765463548673,106.9604,130.88,130.81,3.38]
[1765463548868,0.04912281,130.86,130.83,0.05718181]
[1765463549069,0.74912281,130.86,130.83,0.05718181]
[1765463549269,0.04912281,130.86,130.83,0.05718181]
[1765463549473,0.04912281,130.86,130.83,3.43718181]
[1765463550373,0.7,130.94,130.86,106.9724]
[1765463550570,107.6204,130.93,130.85,3.38]
[1765463550770,107.6278,130.92,130.84,64.9]
[1765463551281,0.75640016,130.89,130.87,0.04969706]
[1765463552688,0.05640016,130.89,130.87,0.04969706]
[1765463553190,0.05640016,130.89,130.87,3.42969706]
[1765463553391,0.05640016,130.89,130.87,0.04969706]
[1765463554491,0.75640016,130.89,130.87,0.04969706]
[1765463554799,213.7516,130.99,130.87,3.42969706]
[1765463555085,106.8427,131.03,130.93,3.38]
[1765463555294,106.8427,131.03,130.93,110.2985]
[1765463555295,171.7573,131.03,130.93,110.2985]
[1765463555504,106.8087,131.07,130.96,106.8939]
[1765463555790,0.05068468,131.03,131.0,0.05785923]
[1765463556585,6.91898468,131.03,131.0,0.05785923]
[1765463556786,0.05068468,131.03,131.0,0.05785923]
[1765463557378,106.7683,131.12,131.01,106.8527]
[1765463557577,64.92,131.13,131.03,106.8365]
[1765463557782,64.92,131.13,131.04,6.867]
[1765463557985,6.8624,131.14,131.05,3.38]
[1765463558188,106.7964,131.08,131.0,3.38]
[1765463558380,0.05635279,131.05,131.03,0.05706792]
[1765463559684,106.8318,131.04,130.96,3.38]
[1765463560093,106.8212,131.05,130.96,3.38]
[1765463560388,6.867,131.05,130.96,10.2514]
[1765463560798,0.0489753,131.02,130.99,0.05605196]
[1765463561292,106.8065,131.07,131.0,3.38]
[1765463561586,106.8065,131.07,130.99,0.05605196]
[1765463561587,106.8292,131.04,130.96,3.38]
[1765463561995,113.7074,131.03,130.96,3.38]
[1765463562181,0.05735616,131.01,130.98,0.05715089]
[1765463562388,0.05735616,131.01,130.98,3.43715089]
[1765463562582,0.05735616,131.01,130.98,0.05715089]
[1765463562785,0.05735616,131.01,130.98,3.43715089]
[1765463563395,0.05735616,131.01,130.98,0.05715089]
[1765463563796,0.10735616,131.01,130.98,0.05715089]
[1765463564399,0.05,130.99,130.98,0.05715089]
[1765463564594,106.9235,130.99,130.9,68.26]
[1765463564794,0.05,130.94,130.9,64.88]
[1765463564994,106.9287,130.98,130.9,68.26]
[1765463565384,106.8473,131.02,130.91,110.3131]
[1765463565385,106.8583,131.01,130.91,110.3131]
[1765463565586,0.05173907,130.97,130.95,0.05075036]
[1765463565896,0.10173907,130.97,130.95,0.05075036]
[1765463566103,6.97323907,130.97,130.95,0.05075036]
[1765463566397,0.05173907,130.97,130.95,3.43075036]
[1765463566696,0.05173907,130.97,130.95,0.05075036]
[1765463567288,0.10173907,130.97,130.95,0.05075036]
[1765463567487,0.05,130.96,130.95,0.05075036]
[1765463567695,6.92333907,130.97,130.95,0.05075036]
[1765463568096,0.05173907,130.97,130.95,0.05075036]
[1765463569005,0.11173907,130.97,130.95,0.05075036]
[1765463569392,0.05173907,130.97,130.95,0.05075036]
[1765463569589,0.11173907,130.97,130.95,0.05075036]
[1765463569794,0.06,130.96,130.95,0.05075036]
[1765463570100,6.92313907,130.97,130.95,0.05075036]
[1765463570303,6.98313907,130.97,130.95,0.05075036]
[1765463570601,6.98313907,130.97,130.88,64.88]
[1765463570602,6.8725,130.95,130.88,64.88]
[1765463570794,0.06,130.95,130.88,64.88]
[1765463571193,171.8125,130.99,130.88,175.2768]
[1765463571507,171.8125,130.99,130.89,3.44]
[1765463571704,0.05142367,130.95,130.93,0.05749325]
[1765463572497,0.05142367,130.95,130.93,3.49749325]
[1765463572706,0.05142367,130.95,130.93,0.05749325]
[1765463574404,0.05142367,130.95,130.93,3.49749325]
[1765463574904,6.8692,131.01,130.93,3.49749325]
[1765463575106,6.8692,131.01,130.93,110.3547]
[1765463575406,106.915,131.01,130.93,10.3132]
[1765463575611,106.9218,131.0,130.9,171.8203]
[1765463575798,106.9218,131.0,130.9,175.2603]
[1765463576001,0.05593251,130.96,130.94,0.05796618]
[1765463576903,0.05593251,130.96,130.94,3.49796618]
[1765463577411,106.8978,131.03,130.94,3.49796618]
[1765463577604,106.8978,131.03,130.94,3.44]
[1765463577912,6.8697,131.0,130.94,10.3124]
[1765463578113,0.06,131.03,130.94,3.44]
[1765463578309,0.05567599,130.98,130.96,3.48937427]
[1765463578508,0.05782811,130.98,130.96,10.36097427]
[1765463578703,0.05782811,130.98,130.96,0.04937427]
[1765463579511,0.11782811,130.98,130.96,0.04937427]
[1765463579710,6.98862811,130.98,130.96,0.04937427]
[1765463579910,0.06,130.97,130.96,0.04937427]
[1765463580411,0.06,130.93,130.87,0.95795]
[1765463580602,106.8978,130.96,130.87,4.39795]
[1765463580800,0.06,130.92,130.87,0.95795]
[1765463581194,0.04874335,130.91,130.88,3.48983649]
[1765463581400,106.9186,131.01,130.92,3.44]
[1765463581603,106.972,131.0,130.92,3.44]
[1765463581810,106.982,130.99,130.89,171.8268]
[1765463582214,6.8718,130.96,130.91,6.8743]
[1765463582412,0.16389326,130.95,130.93,0.05027561]
[1765463582606,0.11,130.94,130.93,0.05027561]
[1765463582805,0.05389326,130.95,130.93,0.05027561]
[1765463583001,0.16389326,130.95,130.93,0.05027561]
[1765463583204,0.05389326,130.95,130.93,0.05027561]
[1765463583716,0.11,130.94,130.87,0.95795]
[1765463583910,0.06,130.9,130.87,0.95795]
[1765463584119,0.06,130.89,130.87,0.95795]
[1765463584310,6.9356,130.89,130.87,0.95795]
[1765463584607,6.99374616,130.89,130.87,1.01601872]
[1765463584800,0.05814616,130.89,130.87,1.01601872]
[1765463585112,107.0227,130.88,130.8,3.44]
[1765463585298,6.8767,130.87,130.8,10.3199]
[1765463585507,106.9462,130.9,130.8,3.44]
[1765463585711,171.8462,130.9,130.8,3.44]
[1765463585908,107.0062,130.9,130.8,3.44]
[1765463586108,0.05157843,130.86,130.84,0.05392776]
[1765463586312,0.05704175,130.86,130.85,3.44]
[1765463586512,0.06,130.91,130.84,0.05657952]
[1765463586712,106.9993,130.91,130.82,3.44]
[1765463587013,106.9523,130.89,130.82,3.44]
[1765463587511,0.05752543,130.87,130.84,0.05245044]
[1765463587716,0.06,130.86,130.84,0.05245044]
[1765463587915,0.05752543,130.87,130.84,0.05245044]
[1765463588116,0.11752543,130.87,130.84,0.05245044]
[1765463588909,0.05752543,130.87,130.84,3.49245044]
[1765463589317,0.05752543,130.87,130.84,0.05245044]
[1765463589613,0.06,130.86,130.84,0.05245044]
[1765463590309,6.877,130.86,130.84,0.05245044]
[1765463590510,0.05752543,130.87,130.84,0.05245044]
[1765463590716,0.05752543,130.87,130.84,3.49245044]
[1765463591117,0.11752543,130.87,130.84,0.05245044]
[1765463591517,0.06,130.85,130.84,0.05245044]
[1765463591719,0.06,130.84,130.76,3.44]
[1765463592021,6.8803,130.8,130.76,3.44]
[1765463592916,6.8803,130.8,130.67,335.1485]
[1765463592917,107.0522,130.77,130.68,3.44]
[1765463593213,64.92,130.76,130.68,3.44]
[1765463593420,171.9846,130.76,130.68,3.44]
[1765463593620,107.0668,130.75,130.68,3.44]
[1765463593812,0.05850631,130.73,130.7,3.48829957]
[1765463594407,0.05850631,130.73,130.7,0.04829957]
[1765463595212,6.8845,130.72,130.7,0.04829957]
[1765463595613,113.975,130.72,130.7,0.04829957]
[1765463595917,0.05850631,130.73,130.7,0.04829957]
[1765463597222,0.05850631,130.73,130.7,3.19829957]
[1765463597919,107.0349,130.79,130.72,3.15]
[1765463598224,107.0495,130.77,130.68,3.15]
[1765463598625,6.882,130.77,130.7,3.2]
[1765463598821,6.882,130.77,130.72,0.05214164]
[1765463599010,0.05200243,130.75,130.72,3.25214164]
[1765463599416,0.05200243,130.75,130.72,0.05214164]
[1765463599616,0.05200243,130.75,130.72,3.25214164]
[1765463599817,0.05200243,130.75,130.72,0.05214164]
[1765463600420,107.0924,130.72,130.61,107.175]
[1765463600625,107.1158,130.69,130.61,3.2]
[1765463601225,6.8872,130.67,130.61,3.2]
[1765463601519,0.05329921,130.65,130.63,0.04994851]
[1765463602327,119.30207126,130.72,130.63,0.04994851]
[1765463602328,107.0834,130.73,130.64,3.2]
[1765463603025,107.0927,130.72,130.64,3.2]
[1765463603225,0.05546551,130.69,130.67,0.04908562]
[1765463603427,0.05546551,130.69,130.67,3.24908562]
[1765463603617,0.05546551,130.69,130.67,0.04908562]
[1765463603818,0.05546551,130.69,130.67,3.24908562]
[1765463604018,0.05546551,130.69,130.67,10.13588562]
[1765463604219,0.05546551,130.69,130.68,3.2]
[1765463605116,64.98,130.74,130.68,3.2]
[1765463605324,107.0578,130.76,130.68,3.2]
[1765463605835,107.0768,130.74,130.64,15.40967126]
[1765463606020,107.0768,130.74,130.65,3.2]
[1765463606221,107.0554,130.77,130.67,110.3279]
[1765463606414,107.0887,130.8,130.71,3.25818242]
[1765463606624,107.1444,130.79,130.71,3.2]
[1765463606830,6.8815,130.78,130.71,3.2]
[1765463607027,107.0332,130.79,130.71,3.2]
[1765463607326,107.1432,130.79,130.71,3.2]
[1765463607532,0.05568124,130.76,130.74,0.05848473]
[1765463608033,0.05568124,130.76,130.74,3.25848473]
[1765463608835,0.05568124,130.76,130.74,0.05848473]
[1765463609135,0.11,130.75,130.67,3.2]
[1765463609337,6.8836,130.74,130.69,3.2]
[1765463610220,6.8836,130.74,130.7,0.05450484]
[1765463610425,7.04323519,130.73,130.7,0.05450484]
[1765463610722,6.93323519,130.73,130.7,0.05450484]
[1765463610925,0.04923519,130.73,130.7,0.05450484]
[1765463611321,0.04923519,130.73,130.7,3.25450484]
[1765463612424,0.11,130.72,130.7,0.05450484]
[1765463612625,0.04923519,130.73,130.7,0.05450484]
[1765463612829,0.11,130.72,130.7,0.05450484]
[1765463613030,0.11,130.71,130.66,65.0]
[1765463613635,0.11,130.71,130.66,75.0873]
[1765463613834,107.181,130.75,130.66,75.0873]
[1765463614035,0.11,130.74,130.69,0.04999926]
[1765463614239,0.04852372,130.72,130.69,0.04999926]
[1765463615339,0.04852372,130.72,130.69,3.24999926]
[1765463615730,0.15852372,130.72,130.69,0.04999926]
[1765463616837,6.9951,130.71,130.69,0.04999926]
[1765463617031,6.8851,130.71,130.69,0.04999926]
[1765463617230,0.04852372,130.72,130.69,0.04999926]
[1765463617437,6.93302372,130.72,130.69,0.04999926]
[1765463617644,0.15852372,130.72,130.69,0.04999926]
[1765463617836,6.9951,130.71,130.69,0.04999926]
[1765463618241,107.14192372,130.72,130.69,0.04999926]
[1765463618242,0.15852372,130.72,130.69,0.04999926]
[1765463618438,0.11,130.71,130.69,0.04999926]
[1765463618840,0.11,130.7,130.63,6.8888]
[1765463619041,0.11,130.7,130.61,10.99340166]
[1765463619249,107.2342,130.68,130.61,3.2]
[1765463619539,6.8881,130.65,130.61,3.2]
[1765463619946,107.0997,130.71,130.62,3.2569344]
[1765463620144,107.1073,130.7,130.62,3.2]
[1765463620443,6.886,130.69,130.63,6.889]
[1765463620642,7.96340166,130.71,130.62,3.2]
[1765463620834,115.06470166,130.71,130.62,3.2]
[1765463621031,6.9441142,130.68,130.65,0.05131452]
[1765463621237,7.1141142,130.68,130.65,0.05131452]
[1765463621434,0.0575142,130.68,130.65,3.25131452]
[1765463621638,0.0575142,130.68,130.65,0.05131452]
[1765463622241,0.0575142,130.68,130.65,3.25131452]
[1765463624035,0.0575142,130.68,130.65,10.13921452]
[1765463624446,0.0575142,130.68,130.65,0.05131452]
[1765463624843,0.2275142,130.68,130.65,0.05131452]
[1765463625341,6.8872,130.67,130.65,0.05131452]
[1765463625845,0.17,130.66,130.65,0.05131452]
[1765463626050,6.8886,130.64,130.6,3.2]
[1765463626246,107.1344,130.67,130.6,3.2]
[1765463626447,7.79340166,130.68,130.6,3.2]
[1765463626747,107.2876,130.69,130.6,3.2]
[1765463626948,107.2876,130.69,130.62,6.8893]
[1765463627143,120.8739,130.71,130.64,3.24941241]
[1765463627144,0.05292979,130.67,130.64,3.24941241]
[1765463627351,0.22292979,130.67,130.64,0.04941241]
[1765463627543,0.22292979,130.67,130.56,3.2]
[1765463627544,6.8902,130.61,130.56,3.2]
[1765463628149,6.8902,130.61,130.53,65.02]
[1765463628150,107.1907,130.6,130.53,65.02]
[1765463628344,107.3555,130.61,130.53,65.02]
[1765463628543,0.04835197,130.58,130.56,0.05173637]
[1765463629950,6.94025197,130.58,130.56,0.05173637]
[1765463630454,0.04835197,130.58,130.56,0.05173637]
[1765463630753,0.04835197,130.58,130.56,3.49173637]
[1765463631153,0.04835197,130.58,130.56,0.05173637]
[1765463631746,6.94025197,130.58,130.56,0.05173637]
[1765463631949,0.17,130.57,130.56,0.05173637]
[1765463632154,0.17,130.57,130.5,3.44]
[1765463632348,6.8929,130.56,130.5,3.44]
[1765463632754,65.23,130.55,130.45,110.7461]
[1765463633056,0.05639098,130.51,130.49,0.05451623]
[1765463636550,0.22639098,130.51,130.49,0.05451623]
[1765463637860,7.12209098,130.51,130.49,0.05451623]
[1765463638261,6.95209098,130.51,130.49,0.05451623]
[1765463639562,7.0662,130.5,130.45,3.44]
[1765463639749,0.17,130.5,130.45,3.44]
[1765463640260,0.17,130.5,130.44,4.34213554]
[1765463640261,0.17,130.47,130.44,4.34213554]
[1765463640464,0.17,130.46,130.44,4.39037995]
[1765463640660,65.08,130.46,130.44,4.39037995]
[1765463640859,65.25,130.46,130.44,4.39037995]
[1765463641060,0.17,130.45,130.44,4.39037995]
[1765463641363,71.9781,130.46,130.44,4.39037995]
[1765463641560,65.32771877,130.47,130.44,4.39037995]
[1765463641771,0.05771877,130.47,130.45,3.44]
[1765463642060,6.895,130.52,130.46,10.3378]
[1765463642560,7.1261,130.5,130.44,11.24093554]
[1765463642867,65.33,130.54,130.45,3.44]
[1765463643062,0.05229906,130.51,130.48,3.49125541]
[1765463643764,6.8932,130.56,130.5,3.44]
[1765463643962,65.1,130.57,130.5,3.44]
[1765463644563,172.2943,130.6,130.5,3.44]
[1765463644860,0.04888718,130.56,130.54,3.49614898]
[1765463645370,0.04888718,130.56,130.54,0.05614898]
[1765463645666,0.04888718,130.56,130.54,3.49614898]
[1765463645853,172.2763,130.62,130.54,3.49614898]
[1765463646058,6.8909,130.6,130.54,3.44]
[1765463646261,0.28,130.63,130.55,3.44]
[1765463646459,172.2446,130.66,130.55,3.44]
[1765463646765,107.1568,130.64,130.56,3.44]
[1765463646965,0.0512406,130.61,130.59,3.49025107]
[1765463647156,107.1127,130.7,130.62,3.44]
[1765463647354,107.1044,130.71,130.64,3.44]
[1765463647761,65.1,130.72,130.64,3.44]
[1765463648053,0.0521272,130.69,130.67,3.49627601]
[1765463649961,107.0535,130.77,130.68,3.44]
[1765463650760,107.0741,130.74,130.68,3.44]
[1765463651071,0.0569707,130.72,130.7,0.05084376]
[1765463651567,107.5779707,130.72,130.7,0.05084376]
[1765463651768,113.9933,130.7,130.64,68.52]
[1765463651974,107.1168,130.69,130.64,68.52]
[1765463652273,107.1168,130.69,130.65,3.44]
[1765463652465,107.1034,130.71,130.65,3.44]
[1765463652670,107.0906,130.72,130.65,3.44]
[1765463652973,0.05532633,130.7,130.67,3.49049652]
[1765463653272,107.59342633,130.7,130.67,0.05049652]
[1765463653470,107.5589,130.68,130.63,3.44]
[1765463653659,107.1404,130.66,130.59,3.44]
[1765463654066,0.43,130.68,130.59,3.44]
[1765463654373,107.1249,130.68,130.59,3.44]
[1765463654673,0.05770612,130.65,130.62,3.33262078]
[1765463656562,107.093,130.72,130.62,3.33262078]
[1765463656774,107.0996,130.71,130.62,3.28]
[1765463656972,172.1449,130.73,130.64,3.28]
[1765463657174,107.0994,130.71,130.64,3.28]
[1765463657368,107.5968,130.69,130.61,3.28]
[1765463657563,114.0105,130.68,130.64,0.04952689]